{"text_format":"1","workbook":"xlsx","n_sheets":3,"sheets":["Next Entry Cell","Next Blank Cell","VBA Code"],"not_rendered":{"charts":0,"images":0,"macros":1,"external_links":0,"defined_names":1,"comments":0,"pivot_tables":0},"unopened":[],"bounds":{"document_bytes":16777216,"sheet_cells":100000,"rows_first":2000,"rows_last":500,"rows_between":2000,"halvings":0,"cell_chars":16384,"cell_head_chars":4096},"cells_cut":0,"cells_raw":0,"read":"whole","date_system":"1900"}

{"sheet":"Next Entry Cell","index":0,"n_rows":11,"n_cols":14,"rows_kept":11,"cut":false,"hidden":false,"merged":[[1,1,1,4],[6,2,6,4],[1,10,1,13],[6,11,6,13]]}
[]
[null,"Use of Keyboard Shortcut",null,null,null,null,null,null,null,null,"Use of Keyboard Shortcut"]
[]
[null,"Student","Justin",null,null,null,null,null,null,null,"Student",1]
[null,"Grade",4,null,null,null,null,null,null,null,"Grade",2]
[]
[null,"Summary","Good",null,null,null,null,null,null,null,"Summary",7]
[]
[null,"English","A","Physics ","B",null,null,null,null,null,"English",3,"Physics ",5]
[null,"History",null,"Chemistry","A",null,null,null,null,null,"History",null,"Chemistry",6]
[null,"Math","C","Biology",null,null,null,null,null,null,"Math",4,"Biology"]

{"sheet":"Next Blank Cell","index":1,"n_rows":9,"n_cols":13,"rows_kept":9,"cut":false,"hidden":false,"merged":[[1,1,1,4],[1,9,1,12]]}
[]
[null,"Use of Keyboard Shortcut",null,null,null,null,null,null,null,"Use of Keyboard Shortcut"]
[]
[null,"Items","Order 1","Order 2","Total Order",null,null,null,null,"Items","Order 1","Order 2","Total Order"]
[null,"Soap",401,295,{"$f":"C5+D5","v":696},null,null,null,null,"Soap",401,295,{"$f":"K5+L5","v":696}]
[null,"Handwash",210,160,{"$f":"C6+D6","v":370},null,null,null,null,"Handwash",210,160,{"$f":"K6+L6","v":370}]
[null,"Shampoo",203,527,730,null,null,null,null,"Shampoo",203,527,730]
[null,"Toothpaste",null,237,237,null,null,null,null,"Toothpaste",null,237,237]
[null,"Facewash",250,340,590,null,null,null,null,"Facewash",250,340,590]

{"sheet":"VBA Code","index":2,"n_rows":9,"n_cols":13,"rows_kept":9,"cut":false,"hidden":false,"merged":[[1,1,1,4],[1,9,1,12]]}
[]
[null,"Using VBA Code",null,null,null,null,null,null,null,"Using VBA Code"]
[]
[null,"Items","Order 1","Order 2","Total Order",null,null,null,null,"Items","Order 1","Order 2","Total Order"]
[null,"Soap",401,295,{"$f":"C5+D5","v":696},null,null,null,null,"Soap",401,295,{"$f":"K5+L5","v":696}]
[null,"Handwash",280,160,{"$f":"C6+D6","v":440},null,null,null,null,"Handwash",210,160,{"$f":"K6+L6","v":370}]
[null,"Shampoo",203,527,730,null,null,null,null,"Shampoo",203,527,730]
[null,"Toothpaste",350,237,587,null,null,null,null,"Toothpaste",350,237,587]
[null,"Facewash",250,310,560,null,null,null,null,"Facewash",250,340,590]